bitfinex/quotes_SOLUSD_20240620
["timestamp","ask_amount","ask_price","bid_price","bid_amount"]
[1718857596701,15.0634,133.45,133.4,7.4958]
[1718857597381,15.0634,133.45,133.39,15.0667]
[1718857597382,7.57,133.45,133.39,15.0667]
[1718857597588,7.57,133.44,133.39,15.0667]
[1718857597989,7.57,133.44,133.39,7.4967]
[1718857598294,15.0642,133.44,133.39,7.4967]
[1718857599198,7.57,133.44,133.38,8.25]
[1718857599402,7.57,133.44,133.41,7.4955]
[1718857599575,7.4931,133.46,133.41,7.4955]
[1718857599780,7.57,133.45,133.41,7.4955]
[1718857599995,7.4934,133.45,133.4,15.066]
[1718857600193,7.4946,133.43,133.38,7.4969]
[1718857600380,15.0642,133.44,133.39,7.4967]
[1718857601296,7.57,133.44,133.38,7.57]
[1718857601480,16.6536,133.47,133.38,26.3129]
[1718857601681,7.57,133.44,133.4,7.496]
[1718857601995,15.064,133.44,133.4,7.496]
[1718857602196,15.064,133.44,133.39,7.4965]
[1718857602891,7.57,133.43,133.39,7.4965]
[1718857605491,7.57,133.43,133.38,26.3131]
[1718857605698,7.57,133.45,133.4,0.17]
[1718857606004,7.57,133.45,133.39,7.91]
[1718857606183,7.57,133.45,133.41,7.4956]
[1718857606586,7.57,133.45,133.42,7.495]
[1718857606897,24.146,133.47,133.42,7.495]
[1718857606898,7.57,133.46,133.42,7.495]
[1718857607096,31.716,133.47,133.42,7.495]
[1718857607690,7.4914,133.49,133.44,7.4939]
[1718857607899,15.0614,133.49,133.44,7.4939]
[1718857608098,15.0618,133.48,133.44,7.4939]
[1718857608403,15.0618,133.48,133.43,15.0643]
[1718857608594,15.0618,133.48,133.43,7.4943]
[1718857608993,7.4914,133.49,133.44,7.4938]
[1718857609298,7.4907,133.5,133.45,7.4933]
[1718857609502,7.57,133.49,133.45,7.4933]
[1718857609908,15.0607,133.5,133.45,7.4933]
[1718857610588,7.4912,133.49,133.44,15.0638]
[1718857610791,15.0612,133.49,133.44,7.4938]
[1718857610998,7.57,133.48,133.44,7.4938]
[1718857613005,7.4903,133.51,133.46,7.4925]
[1718857613209,7.57,133.48,133.45,7.4931]
[1718857613411,7.57,133.48,133.44,7.4937]
[1718857614107,7.57,133.48,133.45,7.4931]
[1718857614406,7.57,133.49,133.46,7.4928]
[1718857614793,7.57,133.48,133.45,7.4932]
[1718857615704,18.7266,133.5,133.42,15.4249]
[1718857615921,7.8381855,133.55,133.46,7.57]
[1718857616090,7.57,133.53,133.47,7.57]
[1718857616289,7.57,133.53,133.45,18.9036]
[1718857616290,7.4892,133.53,133.45,18.9036]
[1718857616490,7.4892,133.53,133.48,7.4916]
[1718857616491,15.0592,133.53,133.48,7.4916]
[1718857616891,7.57,133.52,133.48,7.4916]
[1718857620312,7.4892,133.53,133.48,7.4916]
[1718857620609,7.57,133.52,133.48,7.4916]
[1718857621418,15.0595,133.52,133.48,7.4916]
[1718857622113,15.0595,133.52,133.45,25.4867]
[1718857622114,15.0601,133.51,133.47,7.4921]
[1718857622304,7.57,133.51,133.48,7.4915]
[1718857622507,7.57,133.51,133.47,7.4922]
[1718857623394,7.4897,133.52,133.47,7.4922]
[1718857623596,7.57,133.51,133.47,7.4922]
[1718857627923,7.57,133.52,133.48,7.4916]
[1718857628133,7.4891,133.53,133.48,7.4916]
[1718857628306,7.57,133.52,133.48,7.4916]
[1718857629721,7.4884,133.54,133.5,7.4905]
[1718857630014,23.1797,133.56,133.51,7.4899]
[1718857630219,30.7497,133.56,133.52,7.4894]
[1718857631116,15.0568,133.57,133.52,7.4894]
[1718857631424,7.4873,133.56,133.51,15.0598]
[1718857631797,7.57,133.54,133.48,15.3831]
[1718857632017,7.57,133.53,133.49,0.17]
[1718857632213,20.0,133.55,133.49,0.17]
[1718857632214,7.57,133.54,133.49,0.51]
[1718857632408,15.0581,133.55,133.49,8.08]
[1718857632916,7.4886,133.54,133.49,7.57]
[1718857633117,7.57,133.53,133.48,22.9531]
[1718857633511,15.0587,133.54,133.49,7.4908]
[1718857634107,8.83112308,133.58,133.49,0.17]
[1718857634427,7.57,133.55,133.51,7.4899]
[1718857634607,15.0578,133.55,133.5,15.0604]
[1718857634810,15.0578,133.55,133.49,0.68]
[1718857634811,15.0578,133.55,133.51,7.4899]
[1718857635115,7.57,133.55,133.51,7.4899]
[1718857635925,7.4874,133.56,133.51,7.4899]
[1718857636219,27.4868,133.57,133.5,7.57]
[1718857636419,27.4868,133.57,133.52,7.4892]
[1718857636624,7.57,133.56,133.52,7.4892]
[1718857636812,7.57,133.56,133.53,7.4888]
[1718857637209,7.57,133.56,133.52,7.4893]
[1718857638025,27.4867,133.57,133.52,7.4893]
[1718857638219,20.0,133.57,133.54,7.4883]
[1718857638404,20.0,133.57,133.53,7.4886]
[1718857638604,27.57,133.57,133.53,7.4886]
[1718857639813,35.0567,133.57,133.53,7.4886]
[1718857640419,27.4869,133.57,133.52,7.4894]
[1718857640625,35.0569,133.57,133.52,7.4894]
[1718857640930,35.0569,133.57,133.52,8.26366113]
[1718857641409,7.4873,133.56,133.52,7.4894]
[1718857641613,27.4867,133.57,133.52,7.4894]
[1718857641827,35.0567,133.57,133.52,7.4894]
[1718857642211,7.4858,133.59,133.54,7.488]
[1718857642536,7.4858,133.59,133.53,7.57]
[1718857642537,7.57,133.59,133.53,15.0587]
[1718857642719,7.57,133.58,133.53,7.4887]
[1718857643314,7.4867,133.57,133.53,7.4887]
[1718857643707,7.4862,133.58,133.54,7.4883]
[1718857644131,22.6398,133.6,133.54,0.17]
[1718857644320,15.0551,133.6,133.55,7.57]
[1718857644629,15.0551,133.6,133.55,15.0575]
[1718857644821,15.0551,133.6,133.56,7.4871]
[1718857645641,7.4851,133.6,133.56,7.4871]
[1718857645934,7.4851,133.6,133.55,7.4875]
[1718857646435,7.4856,133.59,133.54,7.4881]
[1718857646736,15.0556,133.59,133.54,7.4881]
[1718857647112,7.57,133.59,133.55,7.4876]
[1718857647323,22.28619332,133.63,133.54,0.17]
[1718857647522,15.9004,133.63,133.58,7.57]
[1718857647723,15.9004,133.63,133.6,7.4847]
[1718857647932,7.57,133.64,133.59,7.57]
[1718857648229,7.57,133.64,133.6,7.4847]
[1718857648636,15.0528,133.64,133.6,7.4847]
[1718857648939,7.4828,133.64,133.6,7.4847]
[1718857649229,15.0528,133.64,133.6,7.4847]
[1718857650522,6.5881,133.66,133.57,7.57]
[1718857650523,7.4834,133.63,133.57,7.57]
[1718857650726,15.0534,133.63,133.57,7.57]
[1718857651118,7.483,133.64,133.59,7.4852]
[1718857651311,15.0533,133.63,133.59,7.4852]
[1718857652129,7.57,133.63,133.59,7.4852]
[1718857653133,15.0534,133.63,133.58,7.4858]
[1718857653527,7.57,133.62,133.58,7.4858]
[1718857654025,7.57,133.62,133.59,7.4855]
[1718857654419,15.0534,133.63,133.59,7.4855]
[1718857654935,7.4839,133.62,133.58,7.486]
[1718857655242,15.0539,133.62,133.58,7.486]
[1718857656722,7.57,133.62,133.58,7.486]
[1718857657440,7.57,133.62,133.59,7.4855]
[1718857657617,7.57,133.63,133.59,7.4855]
[1718857658218,15.0528,133.64,133.59,7.4855]
[1718857658420,7.57,133.63,133.59,7.4855]
[1718857658723,15.0533,133.63,133.58,7.4859]
[1718857660425,7.57,133.6,133.53,33.9169]
[1718857660624,7.57,133.6,133.56,7.4871]
[1718857662430,18.7084,133.63,133.53,15.1947]
[1718857662640,15.853,133.59,133.53,7.57]
[1718857662937,7.57,133.58,133.55,7.4878]
[1718857663115,23.423,133.59,133.55,7.4878]
[1718857663938,23.423,133.59,133.56,7.487]
[1718857664949,23.423,133.59,133.55,7.4875]
[1718857665121,14.0472,133.61,133.56,7.4872]
[1718857665316,27.57,133.6,133.56,7.4872]
[1718857665523,35.055,133.6,133.55,7.4876]
[1718857665734,7.57,133.59,133.55,7.4876]
[1718857667139,27.4851,133.6,133.55,7.4876]
[1718857667318,7.57,133.59,133.55,7.4876]
[1718857667945,15.0556,133.59,133.55,7.4876]
[1718857668248,22.4719,133.55,133.46,18.7224]
[1718857668448,7.57,133.47,133.46,18.7224]
[1718857668625,7.4923,133.47,133.46,18.7224]
[1718857668829,15.0623,133.47,133.46,18.7224]
[1718857670143,7.4923,133.47,133.46,18.7224]
[1718857670333,41.1659,133.47,133.46,18.7224]
[1718857670651,41.6759,133.47,133.46,18.7224]
[1718857671433,34.1059,133.47,133.46,18.7224]
[1718857672136,33.5959,133.47,133.46,18.7224]
[1718857674144,7.4918,133.48,133.37,0.17]
[1718857674335,7.4923,133.47,133.42,7.4947]
[1718857674528,7.4918,133.48,133.43,7.4943]
[1718857675541,7.4913,133.49,133.44,7.4939]
[1718857676531,7.4917,133.48,133.43,7.6643]
[1718857676754,21.2411,133.51,133.43,0.17]
[1718857677049,20.0,133.5,133.43,0.17]
[1718857677432,7.4918,133.48,133.43,7.6642]
[1718857677638,20.0,133.5,133.43,0.17]
[1718857677843,27.4907,133.5,133.45,7.4929]
[1718857680133,7.4913,133.49,133.44,7.4938]
[1718857680338,7.4918,133.48,133.43,7.8342]
[1718857680537,7.4918,133.48,133.44,0.34]
[1718857682055,20.0,133.5,133.44,0.34]
[1718857682256,20.0,133.51,133.44,0.34]
[1718857682441,30.1432,133.54,133.49,7.4908]
[1718857682640,30.1432,133.54,133.44,0.34]
[1718857682641,20.0,133.53,133.45,0.17]
[1718857682842,20.0,133.53,133.47,7.4922]
[1718857683035,7.4898,133.52,133.47,7.4922]
[1718857683236,7.4902,133.51,133.46,7.4926]
[1718857683937,7.4897,133.52,133.47,0.17]
[1718857684138,41.3756,133.54,133.48,7.4916]
[1718857684333,7.4898,133.52,133.46,0.17]
[1718857684540,7.4898,133.52,133.46,0.34]
[1718857685364,7.4898,133.52,133.47,7.4921]
[1718857685740,7.4898,133.52,133.48,7.4917]
[1718857686158,20.0,133.53,133.47,0.17]
[1718857686362,7.4884,133.54,133.49,7.4909]
[1718857686861,7.4884,133.54,133.47,0.34]
[1718857686862,20.0,133.56,133.5,7.4905]
[1718857687244,7.4884,133.54,133.49,7.491]
[1718857688456,7.4884,133.54,133.47,0.34]
[1718857688457,38.7194,133.56,133.47,0.34]
[1718857688661,38.7194,133.56,133.47,7.6619]
[1718857688662,7.4901,133.51,133.47,7.6619]
[1718857688954,7.4901,133.51,133.47,7.4919]
[1718857689155,7.4897,133.52,133.47,7.4919]
[1718857689362,42.7,133.56,133.47,0.17]
[1718857689549,42.7,133.56,133.48,0.17]
[1718857690265,7.4889,133.53,133.49,7.491]
[1718857690654,7.4889,133.53,133.48,7.6614]
[1718857690851,7.4895,133.52,133.47,7.8319]
[1718857691047,7.489,133.53,133.48,7.4916]
[1718857691246,38.7193,133.56,133.48,7.4916]
[1718857691247,7.4895,133.52,133.48,7.4916]
[1718857691450,7.4895,133.52,133.47,7.832]
[1718857691649,7.4895,133.52,133.48,7.4917]
[1718857691943,7.4892,133.53,133.48,7.4917]
[1718857692143,7.4895,133.52,133.48,7.4917]
[1718857693170,38.7193,133.56,133.48,7.4917]
[1718857693373,7.4885,133.54,133.49,7.491]
[1718857693855,7.4889,133.53,133.49,7.491]
[1718857694256,7.4889,133.53,133.48,7.4915]
[1718857695158,7.4889,133.53,133.49,7.4911]
[1718857695361,7.4884,133.54,133.5,7.4905]
[1718857695662,7.488,133.55,133.5,7.4905]
[1718857695858,7.4887,133.54,133.49,7.4911]
[1718857696267,7.4879,133.55,133.48,0.17]
[1718857696449,7.4879,133.55,133.49,0.17]
[1718857696649,7.4879,133.55,133.49,0.34]
[1718857696851,7.4884,133.54,133.49,0.34]
[1718857697050,7.4884,133.54,133.49,7.831]
[1718857697846,7.4889,133.53,133.49,7.831]
[1718857698372,7.4886,133.54,133.49,7.831]
[1718857700169,7.4891,133.53,133.49,0.17]
[1718857700368,7.4891,133.53,133.48,7.6616]
[1718857700663,7.4891,133.53,133.49,7.4911]
[1718857700870,7.4886,133.54,133.49,7.4911]
[1718857701369,15.0386,133.54,133.49,7.4911]
[1718857702066,7.4886,133.54,133.49,7.4911]
[1718857702260,7.55,133.54,133.5,7.4905]
[1718857702850,7.55,133.54,133.48,0.17]
[1718857702851,7.489,133.53,133.48,15.2113]
[1718857703050,7.489,133.53,133.48,7.89]
[1718857703464,15.039,133.53,133.48,7.89]
[1718857703963,7.55,133.53,133.49,7.4908]
[1718857704171,15.039,133.53,133.49,7.4908]
[1718857705052,15.0386,133.54,133.49,7.4908]
[1718857706264,7.55,133.53,133.49,7.4908]
[1718857707276,15.0391,133.53,133.49,7.4908]
[1718857707979,7.55,133.52,133.49,7.4908]
[1718857708757,7.4884,133.54,133.48,0.34]
[1718857708957,7.4884,133.54,133.49,7.661]
[1718857709772,7.4884,133.54,133.5,7.4906]
[1718857709969,7.55,133.53,133.5,7.4906]
[1718857711759,7.55,133.53,133.49,7.661]
[1718857712760,7.55,133.53,133.5,7.4904]
[1718857712967,7.55,133.54,133.5,7.4904]
[1718857713879,7.55,133.54,133.51,7.49]
[1718857714465,15.0384,133.54,133.5,7.4904]
[1718857715095,7.55,133.53,133.5,7.4904]
[1718857716988,15.0384,133.54,133.5,7.4904]
[1718857718388,7.55,133.55,133.52,7.4894]
[1718857718565,7.55,133.55,133.51,7.6598]
[1718857719561,7.55,133.55,133.52,7.4894]
[1718857719977,15.0374,133.56,133.52,7.4894]
[1718857720180,7.55,133.56,133.52,7.4894]
[1718857720387,7.4868,133.57,133.52,7.4894]
[1718857720684,15.0373,133.56,133.52,7.4894]
[1718857720886,7.55,133.55,133.51,7.8298]
[1718857721085,15.0381,133.55,133.5,7.4904]
[1718857721285,15.0381,133.55,133.51,7.4899]
[1718857721788,7.55,133.54,133.51,7.4899]
[1718857722473,7.55,133.52,133.47,21.9918]
[1718857722678,7.55,133.52,133.48,7.4914]
[1718857723279,7.55,133.51,133.48,7.4914]
[1718857723668,7.55,133.51,133.47,29.6539]
[1718857723879,7.55,133.5,133.47,23.2355]
[1718857724084,7.55,133.5,133.47,7.4921]
[1718857724474,7.55,133.49,133.48,7.4917]
[1718857724667,7.55,133.5,133.48,7.4917]
[1718857727072,7.4892,133.53,133.48,7.4917]
[1718857727073,7.55,133.51,133.48,7.4917]
[1718857727491,7.55,133.49,133.44,15.4847]
[1718857727689,15.0412,133.49,133.44,15.4847]
[1718857727987,7.55,133.49,133.45,7.4933]
[1718857728376,7.55,133.46,133.42,7.4946]
[1718857728576,7.55,133.46,133.43,7.4945]
[1718857728782,7.55,133.46,133.42,7.4948]
[1718857728983,7.55,133.46,133.43,7.4945]
[1718857730177,7.55,133.46,133.42,7.4946]
[1718857730393,7.55,133.46,133.43,7.4945]
[1718857730576,7.55,133.46,133.41,15.856]
[1718857730983,6.4973,133.5,133.42,7.89]
[1718857731184,7.55,133.48,133.44,0.17]
[1718857731385,7.55,133.48,133.44,0.51]
[1718857731686,7.55,133.49,133.44,0.51]
[1718857732076,7.55,133.49,133.45,0.17]
[1718857732371,7.55,133.5,133.45,7.89]
[1718857732596,7.55,133.5,133.45,0.17]
[1718857732772,7.55,133.5,133.44,7.89]
[1718857732972,7.55,133.49,133.44,7.89]
[1718857734187,7.4897,133.52,133.44,7.89]
[1718857734388,7.55,133.5,133.45,0.34]
[1718857734592,7.55,133.49,133.44,0.34]
[1718857735872,7.55,133.48,133.44,0.34]
[1718857739179,7.55,133.49,133.43,0.17]
[1718857739505,7.55,133.49,133.44,0.17]
[1718857739680,7.55,133.49,133.44,8.06]
[1718857739882,7.55,133.49,133.44,7.72]
[1718857740192,7.55,133.49,133.41,15.856]
[1718857740501,7.55,133.47,133.42,7.55]
[1718857743182,7.55,133.47,133.41,23.916]
[1718857743581,7.55,133.47,133.41,23.746]
[1718857743777,7.4932,133.46,133.39,6.4901]
[1718857744015,7.55,133.43,133.38,15.2075]
[1718857744305,7.55,133.42,133.38,15.2075]
[1718857744484,7.55,133.42,133.36,13.7319]
[1718857745595,7.55,133.43,133.37,7.55]
[1718857745800,7.4931,133.46,133.38,0.17]
[1718857745992,7.55,133.44,133.38,8.06]
[1718857746194,7.55,133.43,133.38,8.06]
[1718857748207,7.55,133.43,133.38,7.72]
[1718857748391,7.55,133.43,133.36,6.1819]
[1718857748582,7.55,133.41,133.37,0.17]
[1718857748782,15.069,133.44,133.35,17.62465763]
[1718857749007,7.55,133.39,133.35,16.3187]
[1718857749307,7.55,133.38,133.33,13.8983]
[1718857750205,7.55,133.38,133.33,6.3483]
[1718857750398,7.55,133.38,133.33,13.8983]
[1718857750602,37.6952,133.42,133.33,13.8983]
[1718857750805,7.55,133.39,133.34,7.55]
[1718857750991,7.55,133.4,133.34,7.55]
[1718857751386,7.4962,133.4,133.33,6.3483]
[1718857753812,27.4959,133.41,133.33,6.3483]
[1718857753999,27.4959,133.41,133.36,7.498]
[1718857755910,20.0,133.41,133.34,0.34]
[1718857756810,45.2732,133.44,133.35,0.17]
[1718857756991,7.4946,133.43,133.36,15.8585]
[1718857757191,7.4946,133.43,133.37,0.34]
[1718857757692,7.4947,133.43,133.37,0.34]
[1718857757892,7.4953,133.42,133.37,0.34]
[1718857758107,7.4957,133.41,133.36,15.8585]
[1718857759107,7.4953,133.42,133.36,15.8585]
[1718857763103,7.4945,133.44,133.37,0.17]
[1718857763302,7.4947,133.43,133.37,0.34]
[1718857764003,7.4951,133.42,133.37,0.34]
[1718857764399,7.4951,133.42,133.36,15.8585]
[1718857769014,7.4948,133.43,133.36,15.8585]
[1718857769223,7.4931,133.46,133.39,0.17]
[1718857769516,7.4936,133.45,133.39,0.51]
[1718857770105,7.4931,133.46,133.39,0.51]
[1718857770420,7.4923,133.47,133.39,0.51]
[1718857770924,7.4923,133.47,133.4,0.17]
[1718857771121,7.4923,133.47,133.4,0.51]
[1718857771312,7.4935,133.45,133.4,0.34]
[1718857772523,7.493,133.46,133.4,0.34]
[1718857772904,7.4914,133.49,133.42,0.17]
[1718857773107,7.4914,133.49,133.42,0.51]
[1718857773506,7.56,133.47,133.42,8.07]
[1718857774007,7.4891,133.53,133.45,15.4426]
[1718857774213,7.56,133.52,133.46,7.73]
[1718857775146,7.4891,133.53,133.47,0.17]
[1718857775329,7.56,133.52,133.47,7.9]
[1718857777007,7.4878,133.55,133.49,6.4039]
[1718857777323,7.56,133.54,133.49,6.4039]
[1718857777532,7.4878,133.55,133.49,6.4039]
[1718857778028,7.4884,133.54,133.49,6.4039]
[1718857779334,7.489,133.53,133.49,6.4039]
[1718857779515,7.4895,133.52,133.49,6.4039]
[1718857779915,7.4901,133.51,133.45,22.0631]
[1718857780306,7.4894,133.53,133.45,22.0631]
[1718857780524,7.4895,133.52,133.45,22.0631]
[1718857780931,7.4895,133.52,133.46,0.17]
[1718857781720,7.49,133.51,133.45,22.0631]
[1718857783140,7.4896,133.52,133.45,22.0631]
[1718857784336,7.489,133.53,133.45,22.0631]
[1718857785430,22.66,133.56,133.46,0.68]
[1718857785630,27.488,133.55,133.46,0.68]
[1718857785832,7.4885,133.54,133.46,0.68]
[1718857787927,7.489,133.53,133.46,0.51]
[1718857788135,20.0,133.55,133.46,0.51]
[1718857789431,7.4891,133.53,133.46,0.51]
[1718857789612,20.0,133.55,133.47,0.17]
[1718857789814,7.4879,133.55,133.47,0.17]
[1718857790156,20.0,133.54,133.47,0.17]
[1718857791121,72.08704652,133.58,133.47,0.17]
[1718857791320,20.0,133.57,133.47,0.17]
[1718857791526,20.0,133.57,133.5,6.0761]
[1718857791836,31.57660002,133.58,133.51,0.17]
[1718857791837,7.4863,133.58,133.51,0.17]
[1718857792032,7.4863,133.58,133.51,0.51]
[1718857792224,7.4863,133.58,133.51,2.00545946]
[1718857794232,7.4867,133.57,133.51,0.51]
[1718857794415,18.7154,133.58,133.5,6.0761]
[1718857794618,7.4882,133.55,133.5,6.0761]
[1718857795738,41.3754,133.58,133.5,6.0761]
[1718857795912,7.4874,133.56,133.5,6.0761]
[1718857799442,7.55,133.54,133.5,6.0761]
[1718857799622,7.488,133.55,133.5,6.0761]
[1718857799822,7.55,133.52,133.5,6.0761]
[1718857800224,7.4876,133.56,133.5,6.0761]
[1718857800424,7.55,133.53,133.5,6.0761]
[1718857801445,7.4876,133.56,133.5,6.0761]
[1718857801648,7.55,133.54,133.5,6.0761]
[1718857801827,7.55,133.53,133.5,6.0761]
[1718857804056,26.2682,133.56,133.48,16.3119]
[1718857804232,7.55,133.5,133.48,16.3119]
[1718857804745,7.55,133.51,133.48,16.3119]
[1718857805169,7.55,133.52,133.48,16.3119]
[1718857805350,7.55,133.53,133.48,16.3119]
[1718857805647,18.715,133.59,133.48,23.8619]
[1718857805843,16.3119,133.6,133.5,15.3496]
[1718857806039,53.32996918,133.65,133.55,29.2034]
[1718857806360,7.55,133.61,133.55,29.2034]
[1718857806535,7.483,133.64,133.56,0.34]
[1718857806933,7.55,133.62,133.57,0.17]
[1718857807445,16.39880002,133.66,133.57,0.17]
[1718857807657,16.39880002,133.66,133.58,0.17]
[1718857808036,16.39880002,133.66,133.58,0.51]
[1718857808444,16.39880002,133.66,133.59,0.17]
[1718857808643,8.91660002,133.66,133.59,0.34]
[1718857808838,22.63,133.68,133.59,0.34]
[1718857809041,7.4795,133.7,133.6,23.2189]
[1718857809241,7.48,133.69,133.62,0.17]
[1718857810041,7.4805,133.68,133.62,0.17]
[1718857810243,40.52398009,133.76,133.62,0.17]
[1718857810452,22.63,133.73,133.62,0.34]
[1718857810654,22.63,133.73,133.64,0.17]
[1718857810655,20.0,133.72,133.64,0.17]
[1718857810854,20.0,133.72,133.63,0.34]
[1718857811147,7.4794,133.7,133.63,0.34]
[1718857812057,7.4801,133.69,133.63,0.34]
[1718857812439,7.4795,133.7,133.63,0.34]
[1718857812677,18.8663,133.72,133.6,22.8789]
[1718857812953,30.1096,133.7,133.6,22.8789]
[1718857813256,7.4796,133.7,133.6,22.8789]
[1718857813443,20.0,133.69,133.6,22.8789]
[1718857813953,20.0,133.69,133.61,0.34]
[1718857814153,20.0,133.69,133.62,0.17]
[1718857814357,7.4806,133.68,133.61,0.34]
[1718857814561,27.4804,133.69,133.62,0.17]
[1718857814746,27.4804,133.69,133.61,0.34]
[1718857815139,27.4804,133.69,133.62,0.17]
[1718857816160,20.0,133.69,133.62,0.17]
[1718857816547,27.48,133.69,133.62,0.17]
[1718857817254,7.4805,133.68,133.62,0.17]
[1718857817850,7.4805,133.68,133.61,0.34]
[1718857818157,7.4816,133.67,133.6,22.8789]
[1718857819053,50.1101,133.69,133.6,22.8789]
[1718857819261,42.63,133.69,133.6,22.8789]
[1718857819577,7.4807,133.68,133.61,0.51]
[1718857819941,42.63,133.69,133.61,0.17]
[1718857820176,42.63,133.69,133.61,0.51]
[1718857820348,42.63,133.69,133.6,22.8789]
[1718857820549,7.4818,133.66,133.6,22.8789]
[1718857820747,20.0,133.69,133.6,22.8789]
[1718857820748,7.4807,133.68,133.61,0.51]
[1718857822161,20.0,133.69,133.61,0.17]
[1718857822346,20.0,133.69,133.61,0.51]
[1718857822545,31.09075938,133.75,133.64,6.3688]
[1718857822747,7.4788,133.72,133.64,6.5388]
[1718857822952,7.4788,133.72,133.65,0.17]
[1718857823159,7.4788,133.71,133.65,0.17]
[1718857823480,7.4788,133.71,133.65,0.34]
[1718857823863,7.4785,133.72,133.65,0.34]
[1718857824962,18.6954,133.73,133.64,6.3688]
[1718857825158,42.63,133.72,133.64,6.3688]
[1718857825359,50.1084,133.72,133.64,6.3688]
[1718857825562,7.479,133.71,133.64,6.3688]
[1718857826565,7.4797,133.7,133.64,6.3688]
[1718857827152,7.48,133.69,133.64,6.3688]
[1718857829272,7.4796,133.7,133.64,6.3688]
[1718857830255,0.17,133.71,133.64,6.3688]
[1718857830762,7.4791,133.71,133.64,6.3688]
[1718857830962,20.0,133.7,133.64,6.3688]
[1718857831169,27.4794,133.7,133.64,6.3688]
[1718857831359,20.0,133.7,133.64,6.3688]
[1718857831560,27.4794,133.7,133.64,6.3688]
[1718857833063,20.0,133.7,133.64,6.3688]
[1718857833269,0.62238009,133.74,133.65,0.34]
[1718857833570,20.62238009,133.74,133.65,0.34]
[1718857833976,7.4791,133.71,133.65,0.34]
[1718857835284,7.4784,133.72,133.65,0.34]
[1718857835781,7.479,133.71,133.65,0.34]
[1718857836675,7.4784,133.72,133.65,0.34]
[1718857837179,20.45238009,133.74,133.65,0.34]
[1718857837881,7.4786,133.72,133.65,0.34]
[1718857838469,7.4786,133.72,133.66,16.4419]
[1718857838861,7.4786,133.72,133.66,16.2719]
[1718857839059,7.4779,133.73,133.66,16.2719]
[1718857839260,20.45238009,133.74,133.66,16.2719]
[1718857839461,7.4779,133.73,133.66,16.2719]
[1718857839872,20.45238009,133.74,133.67,0.17]
[1718857840082,27.4772,133.74,133.67,0.68]
[1718857840261,7.4772,133.74,133.67,0.68]
[1718857840464,7.4768,133.75,133.67,0.68]
[1718857841570,7.4773,133.74,133.67,0.68]
[1718857842586,7.4773,133.74,133.68,6.1626]
[1718857844385,7.4767,133.75,133.68,6.1626]
[1718857844572,7.4767,133.75,133.69,1.11488685]
[1718857844772,7.4776,133.74,133.68,6.1626]
[1718857845282,7.4782,133.73,133.68,6.1626]